bitfinex/quotes_SOLUSD_20250626
["timestamp","ask_amount","ask_price","bid_price","bid_amount"]
[1750956992863,5.25328883,142.39,142.38,108.04964886]
[1750956993170,5.25328883,142.41,142.38,108.04964886]
[1750956993373,7.02151727,142.42,142.38,108.04964886]
[1750956993374,5.25328883,142.4,142.38,108.04964886]
[1750956993670,5.25328883,142.39,142.38,108.04964886]
[1750956993856,5.25328883,142.41,142.38,108.04964886]
[1750956994047,5.25328883,142.4,142.38,108.04964886]
[1750956994248,5.25328883,142.39,142.38,108.04964886]
[1750956994450,5.25328883,142.41,142.38,108.04964886]
[1750956994650,5.25328883,142.4,142.38,108.04964886]
[1750956994874,5.25328883,142.39,142.38,108.04964886]
[1750956995076,5.25328883,142.41,142.38,108.04964886]
[1750956995276,5.25328883,142.4,142.38,108.04964886]
[1750956995461,7.02151727,142.42,142.38,108.04964886]
[1750956995462,5.25328883,142.39,142.38,108.04964886]
[1750956995662,5.25328883,142.41,142.37,18.64964886]
[1750956995873,5.25328883,142.4,142.37,18.64964886]
[1750956996051,5.25328883,142.39,142.37,18.64964886]
[1750956996250,5.25328883,142.41,142.37,18.64964886]
[1750956996451,5.25328883,142.4,142.37,18.64964886]
[1750956996778,5.25328883,142.39,142.37,18.64964886]
[1750956996966,5.25328883,142.41,142.37,18.64964886]
[1750956997172,5.25328883,142.4,142.37,18.64964886]
[1750956997467,5.25328883,142.39,142.37,18.64964886]
[1750956997653,5.25328883,142.41,142.37,18.64964886]
[1750956997852,5.25328883,142.4,142.37,18.64964886]
[1750956998052,5.25328883,142.39,142.37,18.64964886]
[1750956998274,13.49204035,142.42,142.37,18.64964886]
[1750956998573,5.25536253,142.41,142.37,108.04964886]
[1750956998771,5.25536253,142.4,142.37,108.04964886]
[1750956999068,13.49204035,142.42,142.37,108.04964886]
[1750956999069,5.25536253,142.39,142.37,108.04964886]
[1750956999273,13.49204035,142.42,142.37,108.04964886]
[1750956999572,5.25604917,142.41,142.37,108.04964886]
[1750956999751,5.25604917,142.4,142.37,108.04964886]
[1750956999951,5.25604917,142.39,142.37,108.04964886]
[1750957000166,13.49204035,142.42,142.37,108.04964886]
[1750957000370,5.25683898,142.41,142.37,108.04964886]
[1750957000672,5.25683898,142.4,142.37,108.04964886]
[1750957000847,5.25683898,142.39,142.37,108.04964886]
[1750957001052,13.49204035,142.42,142.37,108.04964886]
[1750957001264,5.25686277,142.41,142.37,108.04964886]
[1750957001466,5.25686277,142.4,142.37,108.04964886]
[1750957001765,5.25686277,142.39,142.37,108.04964886]
[1750957001964,13.49204035,142.42,142.37,108.04964886]
[1750957002177,5.25686277,142.41,142.37,108.04964886]
[1750957002385,5.25686277,142.4,142.35,0.02]
[1750957002585,5.25686277,142.39,142.35,0.02]
[1750957002760,5.25686277,142.38,142.35,0.02]
[1750957002965,5.25686277,142.37,142.35,0.02]
[1750957003274,5.25686277,142.36,142.35,0.02]
[1750957004373,5.25686277,142.38,142.35,0.02]
[1750957004678,5.25686277,142.37,142.35,0.02]
[1750957004976,5.25686277,142.36,142.35,0.02]
[1750957005189,5.25686277,142.39,142.35,0.02]
[1750957005372,5.25686277,142.38,142.35,0.02]
[1750957005558,5.25686277,142.37,142.35,0.02]
[1750957005759,5.25686277,142.36,142.35,0.02]
[1750957005968,5.25686277,142.39,142.35,0.02]
[1750957006159,5.25686277,142.38,142.35,0.02]
[1750957006469,5.25686277,142.37,142.35,0.02]
[1750957006656,5.25686277,142.36,142.35,0.02]
[1750957006856,5.25686277,142.39,142.35,0.02]
[1750957007057,5.25686277,142.38,142.35,0.02]
[1750957007260,5.25686277,142.37,142.35,0.02]
[1750957007471,5.25686277,142.36,142.35,0.02]
[1750957007775,5.25686277,142.38,142.35,0.02]
[1750957008005,5.25686277,142.37,142.35,0.02]
[1750957008271,5.25686277,142.36,142.35,0.02]
[1750957008478,5.25686277,142.37,142.35,0.02]
[1750957008666,5.25686277,142.36,142.35,0.02]
[1750957008858,5.25686277,142.37,142.35,0.02]
[1750957009061,5.25686277,142.36,142.35,0.02]
[1750957009274,5.25686277,142.37,142.35,0.02]
[1750957009458,5.25686277,142.36,142.35,0.02]
[1750957009659,5.25686277,142.37,142.35,0.02]
[1750957009879,5.25686277,142.36,142.35,0.02]
[1750957010081,5.25686277,142.37,142.35,0.02]
[1750957010378,5.25686277,142.36,142.35,0.02]
[1750957010579,5.25686277,142.37,142.35,0.02]
[1750957010766,5.25686277,142.36,142.35,0.02]
[1750957010966,5.25686277,142.37,142.35,0.02]
[1750957011270,5.25686277,142.36,142.35,0.02]
[1750957011468,5.25686277,142.37,142.35,0.02]
[1750957011669,5.25686277,142.36,142.35,0.02]
[1750957011974,5.25686277,142.37,142.35,0.02]
[1750957012176,5.25686277,142.36,142.35,0.02]
[1750957012484,5.25686277,142.37,142.35,0.02]
[1750957012664,5.25686277,142.36,142.35,0.02]
[1750957012864,5.25686277,142.37,142.35,0.02]
[1750957013079,5.25686277,142.36,142.35,0.02]
[1750957013276,5.25686277,142.37,142.35,0.02]
[1750957013475,7.02374037,142.38,142.35,0.02]
[1750957013476,5.25686277,142.36,142.35,0.02]
[1750957013685,5.25686277,142.37,142.35,0.02]
[1750957013878,5.25686277,142.36,142.35,0.02]
[1750957014079,5.25686277,142.37,142.35,0.02]
[1750957014280,5.25686277,142.36,142.35,0.02]
[1750957014479,5.25686277,142.39,142.35,0.02]
[1750957014682,5.25686277,142.38,142.35,0.02]
[1750957014983,5.25686277,142.37,142.35,0.02]
[1750957015186,5.25686277,142.39,142.35,0.02]
[1750957015374,5.25686277,142.38,142.35,0.02]
[1750957015564,5.25686277,142.37,142.35,0.02]
[1750957015765,5.25686277,142.39,142.35,0.02]
[1750957015974,5.25686277,142.38,142.35,0.02]
[1750957016281,5.25686277,142.37,142.35,0.02]
[1750957016489,5.25686277,142.36,142.35,0.02]
[1750957016665,5.25686277,142.38,142.35,0.02]
[1750957016861,5.25686277,142.37,142.35,0.02]
[1750957017065,15.08701881,142.38,142.35,0.02]
[1750957017066,5.25686277,142.36,142.35,0.02]
[1750957018072,11.86954742,142.36,142.35,0.02]
[1750957018377,5.39902434,142.36,142.35,0.02]
[1750957019071,12.4234694,142.36,142.35,0.02]
[1750957020798,18.89399248,142.36,142.35,0.02]
[1750957021290,12.4234694,142.36,142.35,0.02]
[1750957024777,12.4234694,142.36,142.34,0.02]
[1750957024778,0.14216157,142.35,142.32,0.02]
[1750957024977,5.39902434,142.35,142.32,0.02]
[1750957026997,7.02543206,142.34,142.32,0.02]
[1750957027500,5.39902434,142.35,142.32,0.02]
[1750957027501,7.02512633,142.35,142.32,0.02]
[1750957030091,5.25686277,142.36,142.32,0.02]
[1750957030296,6.06831314,142.37,142.32,18.66964886]
[1750957030480,0.81145037,142.37,142.32,18.66964886]
[1750957030679,7.02445182,142.36,142.32,18.66964886]
[1750957030883,7.02445182,142.36,142.32,0.02]
[1750957031399,12.28131459,142.36,142.32,0.02]
[1750957032491,6.06831314,142.37,142.32,0.02]
[1750957032695,7.02455045,142.36,142.32,0.02]
[1750957032872,0.14216157,142.35,142.32,0.02]
[1750957033688,12.28141322,142.36,142.32,0.02]
[1750957033889,7.83557123,142.37,142.32,0.02]
[1750957034669,7.02412086,142.37,142.32,0.02]
[1750957038170,12.28098363,142.37,142.32,0.02]
[1750957038372,7.02412086,142.37,142.32,0.02]
[1750957038573,12.28098363,142.37,142.32,0.02]
[1750957038793,7.02412086,142.37,142.32,0.02]
[1750957039100,12.28098363,142.37,142.32,0.02]
[1750957039395,7.02412086,142.37,142.32,0.02]
[1750957039611,12.28098363,142.37,142.32,0.02]
[1750957039780,7.02412086,142.37,142.32,0.02]
[1750957039986,12.28098363,142.37,142.32,0.02]
[1750957040189,7.02412086,142.37,142.32,0.02]
[1750957040383,12.28098363,142.37,142.32,0.02]
[1750957042781,5.25686277,142.36,142.32,0.02]
[1750957043997,5.25686277,142.35,142.32,0.02]
[1750957044198,7.02592566,142.33,142.32,0.02]
[1750957045271,7.02543206,142.34,142.32,0.02]
[1750957045523,12.28229483,142.34,142.32,0.02]
[1750957045676,7.02543206,142.34,142.32,0.02]
[1750957045881,12.28229483,142.34,142.32,0.02]
[1750957046082,7.02543206,142.34,142.32,0.02]
[1750957046288,12.28229483,142.34,142.32,0.02]
[1750957046513,7.02543206,142.34,142.32,0.02]
[1750957046712,12.28229483,142.34,142.32,0.02]
[1750957046882,7.02543206,142.34,142.32,0.02]
[1750957047082,5.25686277,142.33,142.32,0.02]
[1750957047606,12.28278843,142.33,142.32,0.02]
[1750957047788,7.02592566,142.33,142.32,0.02]
[1750957047989,12.28278843,142.33,142.32,0.02]
[1750957048203,7.02592566,142.33,142.32,0.02]
[1750957048375,12.28278843,142.33,142.32,0.02]
[1750957048581,7.02592566,142.33,142.3,0.02]
[1750957048800,5.25686277,142.32,142.3,0.02]
[1750957049013,5.25686277,142.31,142.3,0.02]
[1750957049202,5.25686277,142.32,142.3,0.02]
[1750957049517,31.0612629,142.33,142.3,0.02]
[1750957049518,12.28377584,142.31,142.3,0.02]
[1750957049719,7.02691307,142.31,142.3,0.02]
[1750957049881,12.28377584,142.31,142.3,0.02]
[1750957050205,7.02691307,142.31,142.3,0.02]
[1750957050390,12.28377584,142.31,142.3,0.02]
[1750957050589,7.02691307,142.31,142.3,0.02]
[1750957050783,12.28377584,142.31,142.3,0.02]
[1750957050984,7.02691307,142.31,142.3,0.02]
[1750957051183,12.28377584,142.31,142.3,0.02]
[1750957051400,7.02691307,142.31,142.3,0.02]
[1750957051601,12.28377584,142.31,142.29,0.02]
[1750957051802,5.25686277,142.3,142.26,0.02]
[1750957052007,5.25686277,142.29,142.26,0.02]
[1750957052212,5.25686277,142.3,142.26,0.02]
[1750957052388,5.25686277,142.29,142.26,0.02]
[1750957052590,5.25686277,142.3,142.26,0.02]
[1750957052797,5.25686277,142.29,142.26,0.02]
[1750957053027,5.25686277,142.3,142.26,0.02]
[1750957053195,5.25686277,142.29,142.26,0.02]
[1750957053389,5.25686277,142.3,142.26,0.02]
[1750957053590,7.02790076,142.29,142.26,0.02]
[1750957056407,10.54378886,142.29,142.26,0.02]
[1750957062398,0.14216157,142.28,142.26,0.02]
[1750957063035,5.39902434,142.28,142.26,0.02]
[1750957064315,7.02888873,142.27,142.26,0.02]
[1750957068434,7.02888873,142.27,142.14,97.1296]
[1750957068435,0.14216157,142.26,142.14,97.1296]
[1750957068724,11.86954742,142.26,142.17,18.64964886]
[1750957069095,21.109665,142.25,142.17,18.64964886]
[1750957069515,21.109665,142.25,142.15,18.79181043]
[1750957069704,21.109665,142.25,142.15,25.55737807]
[1750957069907,26.36652777,142.25,142.15,25.55737807]
[1750957070328,21.109665,142.25,142.15,25.55737807]
[1750957070502,24.6062992,142.24,142.15,25.55737807]
[1750957070702,29.86316197,142.24,142.15,25.55737807]
[1750957071711,29.86316197,142.24,142.15,18.79181043]
[1750957071916,29.86316197,142.24,142.15,25.55737807]
[1750957074622,29.86316197,142.24,142.15,18.79181043]
[1750957074826,38.687078,142.24,142.15,25.55737807]
[1750957075013,5.25686277,142.23,142.15,25.55737807]
[1750957075211,38.687078,142.24,142.15,114.95737807]
[1750957075425,0.14216157,142.23,142.15,108.04964886]
[1750957075802,5.34413658,142.23,142.15,108.04964886]
[1750957075998,21.114121,142.22,142.15,108.04964886]
[1750957076504,7.03185429,142.21,142.15,108.04964886]
[1750957079326,5.19880322,142.22,142.15,114.8152165]
[1750957079327,7.03153068,142.22,142.15,114.8152165]
[1750957080634,7.03086549,142.23,142.15,108.04964886]
[1750957081711,7.03086549,142.23,142.15,114.8152165]
[1750957082013,7.03086549,142.23,142.17,18.64964886]
[1750957083636,7.03086549,142.23,142.16,18.64964886]
[1750957087340,7.03086549,142.23,142.16,108.04964886]
[1750957087949,7.03086549,142.23,142.16,114.8152165]
[1750957089414,7.0303712,142.24,142.16,114.8152165]
[1750957091239,7.0303712,142.24,142.16,108.04964886]
[1750957092240,7.0303712,142.24,142.16,114.8152165]
[1750957097224,12.22917442,142.24,142.16,114.8152165]
[1750957097424,7.0303712,142.24,142.16,114.8152165]
[1750957098327,7.0303712,142.24,142.18,18.64964886]
[1750957098533,7.0303712,142.24,142.18,108.04964886]
[1750957104236,5.19880322,142.24,142.2,25.4152165]
[1750957104441,5.19880322,142.26,142.23,18.64964886]
[1750957104640,13.09700322,142.27,142.23,18.64964886]
[1750957105155,20.12635842,142.27,142.23,18.64964886]
[1750957106458,13.74085842,142.27,142.23,18.64964886]
[1750957107148,8.5420552,142.27,142.23,18.64964886]
[1750957107349,13.74085842,142.27,142.23,18.64964886]
[1750957107641,12.2272956,142.28,142.23,18.64964886]
[1750957107953,5.19880322,142.28,142.25,18.64964886]
[1750957108343,12.22720958,142.28,142.25,18.64964886]
[1750957108649,12.22720958,142.28,142.24,18.64964886]
[1750957114167,7.02840636,142.28,142.24,18.64964886]
[1750957114462,12.22720958,142.28,142.24,18.64964886]
[1750957114641,7.02840636,142.28,142.24,18.64964886]
[1750957114843,12.22720958,142.28,142.24,18.64964886]
[1750957115065,7.02840636,142.28,142.24,18.64964886]
[1750957115767,12.22720958,142.28,142.24,18.64964886]
[1750957116059,7.02840636,142.28,142.24,18.64964886]
[1750957116241,12.22720958,142.28,142.24,18.64964886]
[1750957116541,7.02840636,142.28,142.24,18.64964886]
[1750957116841,12.22720958,142.28,142.24,18.64964886]
[1750957117035,7.02840636,142.28,142.24,18.64964886]
[1750957117465,12.22720958,142.28,142.24,18.64964886]
[1750957119854,12.22720958,142.28,142.22,18.64964886]
[1750957122558,7.02840636,142.28,142.22,18.64964886]
[1750957122949,24.59939314,142.28,142.2,89.4]
[1750957123169,6.5007,142.25,142.17,89.4]
[1750957123365,6.5007,142.25,142.15,89.4]
[1750957123366,0.14216157,142.22,142.15,89.4]
[1750957123550,5.19880322,142.21,142.12,119.832]
[1750957123752,5.19880322,142.21,142.13,18.64964886]
[1750957124474,7.0323488,142.2,142.13,18.64964886]
[1750957128376,7.03185429,142.21,142.13,18.64964886]
[1750957128667,7.03185429,142.21,142.13,108.04964886]
[1750957129348,7.03185429,142.21,142.13,114.8152165]
[1750957129548,7.03185429,142.21,142.13,108.04964886]
[1750957130263,29.81029325,142.21,142.13,108.04964886]
[1750957131387,6.5258,142.2,142.13,108.04964886]
[1750957131752,7.03284337,142.19,142.13,108.04964886]
[1750957135687,7.03284337,142.19,142.13,114.8152165]
[1750957137090,13.55830432,142.2,142.13,114.8152165]
[1750957137382,7.03250432,142.2,142.15,18.64964886]
[1750957137571,7.03250432,142.2,142.15,108.04964886]
[1750957139377,7.03135986,142.22,142.15,108.04964886]
[1750957139877,12.23016308,142.22,142.15,108.04964886]
[1750957140187,7.03135986,142.22,142.15,114.8152165]
[1750957140384,7.03135986,142.22,142.17,18.64964886]
[1750957140588,7.03135986,142.22,142.17,25.4152165]
[1750957140760,7.03135986,142.22,142.16,25.4152165]
[1750957140958,8.68466821,142.23,142.17,6.76556764]
[1750957141156,5.19880322,142.24,142.2,6.76556764]
[1750957141386,7.03017061,142.25,142.2,6.76556764]
[1750957141556,7.03017061,142.25,142.22,18.64964886]
[1750957141958,7.03017061,142.25,142.2,25.4152165]
[1750957146379,8.67832158,142.26,142.21,6.76556764]
[1750957146566,6.18,142.27,142.22,25.4152165]
[1750957146764,6.18,142.27,142.22,114.8152165]
[1750957146976,7.02906966,142.27,142.22,114.8152165]
[1750957147581,7.02906966,142.27,142.22,108.04964886]
[1750957163419,5.19880322,142.28,142.24,25.4152165]
[1750957163615,1.6366,142.29,142.24,25.4152165]
[1750957164319,1.6366,142.29,142.24,18.64964886]
[1750957164320,8.66460364,142.29,142.24,18.64964886]
[1750957167119,8.66460364,142.29,142.24,108.04964886]
[1750957174331,1.6366,142.29,142.24,108.04964886]
[1750957174641,7.06759984,142.3,142.25,18.64964886]
[1750957174837,7.06759984,142.3,142.25,108.04964886]
[1750957181440,12.26640306,142.3,142.25,108.04964886]
[1750957183322,5.19880322,142.29,142.25,108.04964886]
[1750957184239,5.19880322,142.28,142.25,108.04964886]
[1750957185429,5.19880322,142.28,142.25,112.39584755]
[1750957185733,5.19880322,142.29,142.25,112.39584755]
[1750957186732,12.26637669,142.3,142.25,112.39584755]
[1750957188342,5.23880322,142.3,142.25,112.39584755]
[1750957188520,12.2662744,142.3,142.25,112.39584755]
[1750957191045,12.2662744,142.3,142.25,108.04964886]
[1750957193046,12.2662744,142.3,142.25,112.39584755]
[1750957195027,5.23880322,142.3,142.25,112.39584755]
[1750957195526,5.23880322,142.3,142.26,22.99584755]
[1750957195741,0.04,142.3,142.26,22.99584755]
[1750957195924,5.23880322,142.3,142.26,22.99584755]
[1750957196235,0.04,142.3,142.29,18.64964886]
[1750957196433,0.04,142.3,142.29,108.04964886]
[1750957196634,0.04,142.3,142.29,112.39584755]
[1750957197722,0.04,142.3,142.29,113.09863762]
[1750957198340,0.04,142.3,142.29,26.13679052]
[1750957199746,0.04,142.3,142.29,115.67895209]
[1750957203245,0.04,142.3,142.29,108.8946005]
[1750957203549,0.04,142.3,142.29,108.04964886]
[1750957203939,0.04,142.3,142.29,144.23679052]
[1750957204125,0.04,142.3,142.29,136.89181043]
[1750957204328,0.04,142.3,142.29,137.5946005]
[1750957204643,0.04,142.3,142.29,108.04964886]
[1750957205040,0.04,142.3,142.29,18.64964886]
[1750957210943,0.04,142.3,142.27,18.64964886]
[1750957212330,1.6723,142.3,142.24,124.26]
[1750957212525,1.6723,142.3,142.25,18.64964886]
[1750957212742,7.02790076,142.29,142.25,18.64964886]
[1750957213654,7.02790076,142.29,142.22,18.64964886]
[1750957214258,7.02790076,142.29,142.23,18.64964886]
[1750957214438,13.76047656,142.29,142.23,18.64964886]
[1750957216555,8.56167334,142.29,142.23,18.64964886]
[1750957218049,1.53377258,142.29,142.23,25.43400045]
[1750957218258,8.56171285,142.29,142.23,25.43400045]
[1750957218635,1.53377258,142.29,142.25,18.64964886]
[1750957218858,8.56176838,142.29,142.25,18.64964886]
[1750957219569,1.53377258,142.29,142.25,18.64964886]
[1750957222373,1.53377258,142.29,142.25,108.04964886]
[1750957222674,6.87110322,142.3,142.25,114.83400045]
[1750957223240,13.89856429,142.3,142.25,108.04964886]
[1750957226356,13.89856429,142.3,142.25,18.64964886]
[1750957227592,13.89856429,142.3,142.24,89.4]
[1750957227869,5.19880322,142.29,142.23,18.64964886]
[1750957228068,5.19880322,142.28,142.23,25.43400045]
[1750957228370,15.3910059,142.3,142.23,25.43400045]
[1750957228371,5.19880322,142.29,142.23,25.43400045]
[1750957229673,12.22673697,142.29,142.23,25.43400045]
[1750957229855,12.22673697,142.29,142.23,18.64964886]
[1750957234471,12.22673697,142.29,142.23,18.64964886]
[1750957237558,12.22673697,142.29,142.23,25.43400045]
[1750957238269,12.22673697,142.29,142.23,114.83400045]
[1750957240708,5.19880322,142.29,142.25,18.64964886]
[1750957240854,0.04,142.3,142.27,25.43400045]
[1750957241172,0.04,142.3,142.27,114.83400045]
[1750957241965,0.04,142.3,142.29,25.43400045]
[1750957246576,0.04,142.3,142.29,25.57616202]
[1750957247193,0.04,142.3,142.29,25.43400045]
[1750957248290,0.04,142.3,142.29,25.57616202]
[1750957249190,0.04,142.3,142.29,32.60406278]
[1750957249489,0.04,142.3,142.29,25.57616202]
[1750957249794,0.04,142.3,142.29,54.25616202]
[1750957251179,0.04,142.3,142.29,54.95895209]
[1750957253408,0.04,142.3,142.29,54.25616202]
[1750957254705,0.04,142.3,142.29,54.95895209]
[1750957258799,0.04,142.3,142.29,48.1746005]
[1750957259002,0.04,142.3,142.29,144.35895209]
[1750957259205,0.04,142.3,142.29,143.65616202]
[1750957261301,0.04,142.3,142.29,150.68406278]
[1750957262585,0.04,142.3,142.29,143.65616202]
[1750957263086,0.04,142.3,142.29,297.88406278]
[1750957263405,0.04,142.3,142.29,298.16838592]
[1750957265083,0.04,142.3,142.29,291.38403433]
[1750957265287,0.04,142.3,142.29,297.88406278]
[1750957265503,0.04,142.3,142.29,290.85616202]
[1750957266133,0.04,142.3,142.29,298.16838592]
[1750957267014,0.04,142.33,142.32,108.04964886]
[1750957267211,0.04,142.33,142.32,60.95664238]
[1750957268517,0.04,142.33,142.32,68.16747868]
[1750957268722,0.04,142.33,142.32,75.19389801]
[1750957268883,0.04,142.33,142.32,68.40954642]
[1750957270899,0.04,142.33,142.32,215.60954642]
[1750957271097,0.04,142.33,142.32,214.90690449]
[1750957272998,0.04,142.36,142.35,114.71400045]
[1750957273198,0.04,142.36,142.35,290.57400045]
[1750957273698,0.04,142.36,142.35,143.80048516]
[1750957273899,0.04,142.36,142.35,136.73181043]
[1750957274101,0.04,142.36,142.35,144.21865587]
[1750957274308,0.04,142.36,142.35,143.51616202]
[1750957274604,0.04,142.36,142.35,136.73181043]
[1750957274918,0.04,142.36,142.35,137.43430428]
[1750957275413,0.04,142.36,142.35,150.35865587]
[1750957275725,0.04,142.36,142.35,149.65616202]
[1750957276518,0.04,142.36,142.35,142.87181043]
[1750957279616,0.04,142.36,142.35,296.85616202]
[1750957280621,0.04,142.36,142.35,290.07181043]
[1750957282920,0.04,142.36,142.35,304.16542369]
[1750957283125,10.7166022,142.44,142.39,18.79181043]
[1750957283323,5.19880322,142.43,142.39,137.41410693]
[1750957283626,5.19880322,142.44,142.39,137.41410693]
[1750957283828,5.19880322,142.43,142.39,137.41410693]
[1750957284026,5.19880322,142.44,142.39,137.41410693]
[1750957284229,5.19880322,142.43,142.4,0.28432314]
[1750957284433,8.66736411,142.47,142.44,18.64964886]
[1750957284434,5.19880322,142.46,142.44,18.64964886]
[1750957284734,5.19880322,142.45,142.44,108.73386041]
[1750957284926,5.19880322,142.46,142.44,108.73386041]
[1750957285415,5.19880322,142.45,142.44,108.73386041]
[1750957285606,5.19880322,142.46,142.44,108.73386041]
[1750957286127,5.19880322,142.46,142.44,107.88964886]
[1750957286325,5.19880322,142.45,142.44,107.88964886]
[1750957286541,0.04,142.47,142.44,107.88964886]
[1750957286834,7.05925565,142.47,142.44,107.88964886]
[1750957287731,0.04,142.47,142.44,107.88964886]
[1750957291706,0.04,142.47,142.44,89.24]
[1750957293284,0.04,142.47,142.45,18.64964886]
[1750957295502,0.04,142.47,142.44,89.24]
[1750957295725,0.04,142.47,142.45,18.64964886]
[1750957298162,0.04,142.47,142.46,48.19376185]
[1750957298318,0.04,142.47,142.46,54.97811344]
[1750957298850,0.04,142.47,142.46,61.11811344]
[1750957299331,0.04,142.47,142.46,68.42195082]
[1750957299535,0.04,142.47,142.46,157.66195082]
[1750957299853,0.04,142.47,142.46,156.9599994]
[1750957303825,0.04,142.47,142.46,142.72964886]
[1750957304129,0.04,142.47,142.46,149.65616202]
[1750957306339,0.04,142.47,142.46,296.85616202]
[1750957306944,0.04,142.47,142.46,304.1599994]
[1750957310953,0.04,142.47,142.46,297.14048516]
[1750957311158,0.04,142.47,142.46,290.35613357]
[1750957311454,0.04,142.47,142.46,297.14048516]
[1750957312029,0.04,142.47,142.46,290.35613357]
[1750957312226,0.04,142.5,142.48,0.14216157]
[1750957312437,0.04,142.5,142.49,18.79181043]
[1750957315364,0.04,142.5,142.49,114.91832359]
[1750957315662,0.04,142.5,142.49,122.07852151]
[1750957316459,0.04,142.5,142.49,122.78032514]
[1750957317953,0.04,142.5,142.49,108.69361406]
[1750957318558,0.04,142.5,142.49,115.47796565]
[1750957319373,0.04,142.5,142.49,108.69361406]
[1750957320162,0.04,142.5,142.49,115.47796565]
[1750957320870,0.04,142.5,142.49,122.78032514]
[1750957321071,0.04,142.51,142.5,107.80964886]
[1750957321265,0.04,142.51,142.5,143.37400045]
[1750957321473,0.04,142.51,142.5,143.80048516]
[1750957323074,0.04,142.52,142.51,19.07613357]
[1750957323301,0.04,142.52,142.51,173.7621903]
[1750957323572,0.04,142.52,142.51,173.06048516]
[1750957324066,0.04,142.52,142.51,165.99181043]
[1750957324244,0.04,142.52,142.51,107.80964886]
[1750957324446,0.04,142.52,142.51,108.65351557]
[1750957324946,0.04,142.52,142.51,107.80964886]
[1750957342271,5.23880322,142.52,142.51,107.80964886]
[1750957342768,12.25536229,142.52,142.48,18.64964886]
[1750957342981,19.6141263,142.51,142.46,18.64964886]
[1750957343180,11.6693263,142.5,142.45,0.02]
[1750957343393,11.6693263,142.5,142.41,23.87162273]
[1750957343394,0.14216157,142.48,142.41,23.87162273]
[1750957343568,13.2529263,142.47,142.38,6.22]
[1750957343775,6.47052308,142.45,142.34,97.31262394]
[1750957343979,11.6693263,142.44,142.35,28.8]
[1750957344180,5.19880322,142.43,142.36,18.64964886]
[1750957344374,12.22028896,142.42,142.35,28.8]
[1750957344590,7.02148574,142.42,142.36,18.64964886]
[1750957345093,12.22028896,142.42,142.36,18.64964886]
[1750957345295,7.02148574,142.42,142.36,18.64964886]
[1750957345672,12.76722865,142.42,142.36,18.64964886]
[1750957346287,12.76722865,142.42,142.35,47.46964886]
[1750957346880,12.76722865,142.42,142.35,18.64964886]
[1750957347196,12.76722865,142.42,142.35,47.44964886]
[1750957347372,7.02049985,142.44,142.36,0.14216157]
[1750957347568,7.02012906,142.45,142.38,18.64964886]
[1750957347769,18.35762551,142.46,142.38,18.64964886]
[1750957347989,13.15882229,142.46,142.38,18.64964886]
[1750957348187,6.1393,142.46,142.39,0.14216157]
[1750957348382,6.1393,142.46,142.4,18.64964886]
[1750957348698,1.5836,142.47,142.41,0.14216157]
[1750957348904,1.5836,142.47,142.42,18.64964886]
[1750957350274,7.01882242,142.48,142.42,18.64964886]
[1750957350476,7.01803635,142.49,142.42,18.64964886]
[1750957351802,20.01173565,142.5,142.43,0.14216157]
[1750957351980,14.81293243,142.5,142.43,0.14216157]
[1750957354184,5.23880322,142.52,142.46,18.64964886]
[1750957354397,7.05690631,142.52,142.46,18.64964886]
[1750957354685,7.05690631,142.52,142.45,18.79181043]
[1750957356588,7.05690631,142.52,142.45,18.64964886]
[1750957357285,24.598304,142.52,142.45,18.64964886]
[1750957357498,24.598304,142.52,142.42,18.79181043]
[1750957357499,29.79710722,142.52,142.42,18.79181043]
[1750957358016,0.14216157,142.51,142.42,108.04964886]
[1750957358522,7.01754385,142.5,142.42,108.04964886]
[1750957359021,24.56140349,142.5,142.42,108.04964886]
[1750957361707,6.5366,142.48,142.42,108.04964886]
[1750957362904,7.01902154,142.47,142.42,108.04964886]
[1750957364407,6.5366,142.48,142.42,108.04964886]
[1750957364613,8.63130381,142.49,142.42,114.83400045]
[1750957365008,8.63130381,142.49,142.42,108.04964886]
[1750957366016,8.63130381,142.49,142.42,136.88964886]
[1750957366518,1.6131,142.49,142.43,0.14216157]
[1750957366816,1.6131,142.49,142.44,18.64964886]
[1750957367913,1.6131,142.49,142.43,18.79181043]
[1750957368293,8.63118438,142.49,142.43,18.79181043]